Workbook

Sheet Information

Sheet AthletInnen
B1: Mannschaft
B2: Datum
B4: NR | C4: Name, Vorname | D4: Geb.Datum | E4: Alter | F4: Größe [m] | G4: Gewicht [kg] | H4: Ruheherzfrequenz vor dem Test | I4: Maximalherzfrequenz während des 30-15 IFT Test | J4: Erholungsherzfrequenz 30 sek nach Testende | K4: Erholungsherzfrequenz 60 sek nach Testende | L4: Erholungsherzfrequenz 90 sek nach Testende
B5: 1 | E5: =IF(ISNUMBER(D5),DATEDIF(D5,TODAY(),"Y"),"") -> 
B6: 2 | E6: =IF(ISNUMBER(D6),DATEDIF(D6,TODAY(),"Y"),"") -> 
B7: 3
B8: 4
B9: 5
B10: 6
B11: 7
B12: 8
B13: 9
B14: 10
B15: 11
B16: 12
B17: 13
B18: 14
B19: 15
B20: 16
B21: 17
B22: 18
B23: 19
B24: 20
B25: 21
B26: 22
B27: 23
B28: 24
B29: 25
B30: 26
B31: 27
B32: 28
B33: 29
B34: 30
B35: 31
B36: 32
B37: 33
B38: 34
B39: 35
B40: 36
B41: 37
B42: 38
B43: 39
B44: 40
B45: Mittelwerte | E45: =AVERAGE(IF(E5:E44<>0,E5:E44)) ->  | F45: =AVERAGE(IF(F5:F44<>0,F5:F44)) ->  | G45: =AVERAGE(IF(G5:G44<>0,G5:G44)) ->  | H45: =AVERAGE(IF(H5:H44<>0,H5:H44)) ->  | I45: =AVERAGE(IF(I5:I44<>0,I5:I44)) ->  | J45: =AVERAGE(IF(J5:J44<>0,J5:J44)) ->  | K45: =AVERAGE(IF(K5:K44<>0,K5:K44)) ->  | L45: =AVERAGE(IF(L5:L44<>0,L5:L44)) -> 
B47: © by Rexhep Kushutani Msc (VfL Bochum) & Florian Maierhofer MSc (MFT) (nach der Idee von Dr. Martin Buchheit)

Sheet IFT 30-15 Testprotokoll
F1: Starting speed [km/h] | G1: 8 | H1: Starting time | I1: 19:39:04
F2: Speed Increment [km/h] | G2: 0.5
B3: Raw Speed | C3: Final Speed | D3: T(s) | E3: Time | G3: Name | H3: Finishing time | I3: Running time (s) | J3: Peak velocity | L3: max. VIFT [km/h] | M3: Average | N3: Ranking
B4: =G$1 -> 8 | C4: =(((D4-D$4)/45)*G$2)+B$4 -> 8.0 | D4: 0 | E4: =D4*1/(3600*24) -> 00:00:00 | G4: =IF(ISTEXT(AthletInnen!C5),AthletInnen!C5,"") ->  | I4: =IF(H4="","",(H4/(1/(3600*24)))-(I$1/(1/(3600*24)))) ->  | J4: =IF(I4="","",LOOKUP(I4,D$4:D$309,C$4:C$309)) ->  | K4: =IF(J4="","",ROUNDDOWN(J4,0)) ->  | L4: =IF(K4="","",IF(J4-K4<=0.1,K4-0.5,IF(J4-K4>=0.5,K4+0.5,K4))) ->  | M4: =IF(ISNUMBER(L4),AVERAGE(IF($L$4:$L$43<>0,$L$4:$L$43)),"") ->  | N4: =IF(ISNUMBER(L4),_xlfn.RANK.EQ(L4,$L$4:$L$43,0),"") -> 
B5: 8 | C5: 8.1 | D5: 5 | E5: =D5*1/(3600*24) -> 00:00:05 | G5: =IF(ISTEXT(AthletInnen!C6),AthletInnen!C6,"") ->  | N5: =IF(ISNUMBER(L5),_xlfn.RANK.EQ(L5,$L$4:$L$43,0),"") -> 
B6: 8 | C6: 8.1 | D6: 10 | E6: =D6*1/(3600*24) -> 00:00:10 | G6: =IF(ISTEXT(AthletInnen!C7),AthletInnen!C7,"") -> 
B7: 8 | C7: 8.2 | D7: 15 | E7: 00:00:15 | G7: =IF(ISTEXT(AthletInnen!C8),AthletInnen!C8,"") -> 
B8: 8 | C8: 8.2 | D8: 20 | E8: 00:00:20 | G8: =IF(ISTEXT(AthletInnen!C9),AthletInnen!C9,"") -> 
B9: 8 | C9: 8.3 | D9: 25 | E9: 00:00:25 | G9: =IF(ISTEXT(AthletInnen!C10),AthletInnen!C10,"") -> 
B10: 8 | C10: 8.3 | D10: 30 | E10: 00:00:30 | G10: =IF(ISTEXT(AthletInnen!C11),AthletInnen!C11,"") -> 
B11: 8 | C11: 8.4 | D11: 35 | E11: 00:00:35 | G11: =IF(ISTEXT(AthletInnen!C12),AthletInnen!C12,"") -> 
B12: 8 | C12: 8.4 | D12: 40 | E12: 00:00:40 | G12: =IF(ISTEXT(AthletInnen!C13),AthletInnen!C13,"") -> 
B13: =B4+G$2 -> 8.5 | C13: 8.5 | D13: 45 | E13: 00:00:45 | G13: =IF(ISTEXT(AthletInnen!C14),AthletInnen!C14,"") -> 
B14: 8.5 | C14: 8.6 | D14: 50 | E14: 00:00:50 | G14: =IF(ISTEXT(AthletInnen!C15),AthletInnen!C15,"") -> 
B15: 8.5 | C15: 8.6 | D15: 55 | E15: 00:00:55 | G15: =IF(ISTEXT(AthletInnen!C16),AthletInnen!C16,"") -> 
B16: 8.5 | C16: 8.7 | D16: 60 | E16: 00:01:00 | G16: =IF(ISTEXT(AthletInnen!C17),AthletInnen!C17,"") -> 
B17: 8.5 | C17: 8.7 | D17: 65 | E17: 00:01:05 | G17: =IF(ISTEXT(AthletInnen!C18),AthletInnen!C18,"") -> 
B18: 8.5 | C18: 8.8 | D18: 70 | E18: 00:01:10 | G18: =IF(ISTEXT(AthletInnen!C19),AthletInnen!C19,"") -> 
B19: 8.5 | C19: 8.8 | D19: 75 | E19: 00:01:15 | G19: =IF(ISTEXT(AthletInnen!C20),AthletInnen!C20,"") -> 
B20: 8.5 | C20: 8.9 | D20: 80 | E20: 00:01:20 | G20: =IF(ISTEXT(AthletInnen!C21),AthletInnen!C21,"") -> 
B21: 8.5 | C21: 8.9 | D21: 85 | E21: 00:01:25 | G21: =IF(ISTEXT(AthletInnen!C22),AthletInnen!C22,"") -> 
B22: 9 | C22: 9.0 | D22: 90 | E22: 00:01:30 | G22: =IF(ISTEXT(AthletInnen!C23),AthletInnen!C23,"") -> 
B23: 9 | C23: 9.1 | D23: 95 | E23: 00:01:35 | G23: =IF(ISTEXT(AthletInnen!C24),AthletInnen!C24,"") -> 
B24: 9 | C24: 9.1 | D24: 100 | E24: 00:01:40 | G24: =IF(ISTEXT(AthletInnen!C25),AthletInnen!C25,"") ->  | I24: =IF(H24="","",(H24/(1/(3600*24)))-(I$1/(1/(3600*24)))) ->  | J24: =IF(I24="","",LOOKUP(I24,D$4:D$309,C$4:C$309)) ->  | K24: =IF(J24="","",ROUNDDOWN(J24,0)) ->  | L24: =IF(K24="","",IF(J24-K24<=0.1,K24-0.5,IF(J24-K24>=0.5,K24+0.5,K24))) ->  | M24: =IF(ISNUMBER(L24),AVERAGE(IF($L$4:$L$43<>0,$L$4:$L$43)),"") -> 
B25: 9 | C25: 9.2 | D25: 105 | E25: 00:01:45 | G25: =IF(ISTEXT(AthletInnen!C26),AthletInnen!C26,"") -> 
B26: 9 | C26: 9.2 | D26: 110 | E26: 00:01:50 | G26: =IF(ISTEXT(AthletInnen!C27),AthletInnen!C27,"") ->  | L26: =IF(K26="","",IF(J26-K26<=0.1,K26-0.5,IF(J26-K26>=0.5,K26+0.5,K26))) -> 
B27: 9 | C27: 9.3 | D27: 115 | E27: 00:01:55 | G27: =IF(ISTEXT(AthletInnen!C28),AthletInnen!C28,"") -> 
B28: 9 | C28: 9.3 | D28: 120 | E28: 00:02:00 | G28: =IF(ISTEXT(AthletInnen!C29),AthletInnen!C29,"") -> 
B29: 9 | C29: 9.4 | D29: 125 | E29: 00:02:05 | G29: =IF(ISTEXT(AthletInnen!C30),AthletInnen!C30,"") ->  | I29: =IF(H29="","",(H29/(1/(3600*24)))-(I$1/(1/(3600*24)))) -> 
B30: 9 | C30: 9.4 | D30: 130 | E30: 00:02:10 | G30: =IF(ISTEXT(AthletInnen!C31),AthletInnen!C31,"") -> 
B31: 9.5 | C31: 9.5 | D31: 135 | E31: 00:02:15 | G31: =IF(ISTEXT(AthletInnen!C32),AthletInnen!C32,"") -> 
B32: 9.5 | C32: 9.6 | D32: 140 | E32: 00:02:20 | G32: =IF(ISTEXT(AthletInnen!C33),AthletInnen!C33,"") -> 
B33: 9.5 | C33: 9.6 | D33: 145 | E33: 00:02:25 | G33: =IF(ISTEXT(AthletInnen!C34),AthletInnen!C34,"") -> 
B34: 9.5 | C34: 9.7 | D34: 150 | E34: 00:02:30 | G34: =IF(ISTEXT(AthletInnen!C35),AthletInnen!C35,"") -> 
B35: 9.5 | C35: 9.7 | D35: 155 | E35: 00:02:35 | G35: =IF(ISTEXT(AthletInnen!C36),AthletInnen!C36,"") -> 
B36: 9.5 | C36: 9.8 | D36: 160 | E36: 00:02:40 | G36: =IF(ISTEXT(AthletInnen!C37),AthletInnen!C37,"") -> 
B37: 9.5 | C37: 9.8 | D37: 165 | E37: 00:02:45 | G37: =IF(ISTEXT(AthletInnen!C38),AthletInnen!C38,"") -> 
B38: 9.5 | C38: 9.9 | D38: 170 | E38: 00:02:50 | G38: =IF(ISTEXT(AthletInnen!C39),AthletInnen!C39,"") -> 
B39: 9.5 | C39: 9.9 | D39: 175 | E39: 00:02:55 | G39: =IF(ISTEXT(AthletInnen!C40),AthletInnen!C40,"") -> 
B40: 10 | C40: 10.0 | D40: 180 | E40: 00:03:00 | G40: =IF(ISTEXT(AthletInnen!C41),AthletInnen!C41,"") -> 
B41: 10 | C41: 10.1 | D41: 185 | E41: 00:03:05 | G41: =IF(ISTEXT(AthletInnen!C42),AthletInnen!C42,"") -> 
B42: 10 | C42: 10.1 | D42: 190 | E42: 00:03:10 | G42: =IF(ISTEXT(AthletInnen!C43),AthletInnen!C43,"") -> 
B43: 10 | C43: 10.2 | D43: 195 | E43: 00:03:15 | G43: =IF(ISTEXT(AthletInnen!C44),AthletInnen!C44,"") -> 
B45: =#REF!+G$2 ->  | C45: =(((D45-D$4)/45)*G$2)+B$4 -> 10.8 | D45: 250 | E45: 00:04:10 | F45: © by Rexhep Kushutani Msc (VfL Bochum) & Florian Maierhofer MSc (MFT) (nach der Idee von Dr. Martin Buchheit)
B46: =#REF!+G$2 ->  | C46: 10.8 | D46: 255 | E46: 00:04:15
B47: =#REF!+G$2 ->  | C47: 10.9 | D47: 260 | E47: 00:04:20
B48: =#REF!+G$2 ->  | C48: 10.9 | D48: 265 | E48: 00:04:25
B49: =#REF!+G$2 ->  | C49: 11.0 | D49: 270 | E49: 00:04:30
B50: =#REF!+G$2 ->  | C50: 11.1 | D50: 275 | E50: 00:04:35
B51: =#REF!+G$2 ->  | C51: 11.1 | D51: 280 | E51: 00:04:40
B52: =#REF!+G$2 ->  | C52: 11.2 | D52: 285 | E52: 00:04:45
B53: =#REF!+G$2 ->  | C53: 11.2 | D53: 290 | E53: 00:04:50
B54: =B45+G$2 ->  | C54: 11.3 | D54: 295 | E54: 00:04:55
C55: 11.3 | D55: 300 | E55: 00:05:00
C56: 11.4 | D56: 305 | E56: 00:05:05
C57: 11.4 | D57: 310 | E57: 00:05:10
C58: 11.5 | D58: 315 | E58: 00:05:15
C59: 11.6 | D59: 320 | E59: 00:05:20
C60: 11.6 | D60: 325 | E60: 00:05:25
C61: 11.7 | D61: 330 | E61: =D61*1/(3600*24) -> 00:05:30
C62: 11.7 | D62: 335 | E62: 00:05:35
C63: 11.8 | D63: 340 | E63: 00:05:40
C64: 11.8 | D64: 345 | E64: 00:05:45
C65: 11.9 | D65: 350 | E65: 00:05:50
C66: 11.9 | D66: 355 | E66: 00:05:55
C67: 12.0 | D67: 360 | E67: 00:06:00
C68: 12.1 | D68: 365 | E68: 00:06:05
C69: 12.1 | D69: 370 | E69: 00:06:10
C70: 12.2 | D70: 375 | E70: 00:06:15
C71: 12.2 | D71: 380 | E71: 00:06:20
C72: 12.3 | D72: 385 | E72: 00:06:25
C73: 12.3 | D73: 390 | E73: 00:06:30
C74: 12.4 | D74: 395 | E74: 00:06:35
C75: 12.4 | D75: 400 | E75: 00:06:40
C76: 12.5 | D76: 405 | E76: 00:06:45
C77: 12.6 | D77: 410 | E77: 00:06:50
C78: 12.6 | D78: 415 | E78: 00:06:55
C79: 12.7 | D79: 420 | E79: 00:07:00
C80: 12.7 | D80: 425 | E80: 00:07:05
C81: 12.8 | D81: 430 | E81: 00:07:10
C82: 12.8 | D82: 435 | E82: 00:07:15
C83: 12.9 | D83: 440 | E83: 00:07:20
C84: 12.9 | D84: 445 | E84: 00:07:25
C85: 13.0 | D85: 450 | E85: 00:07:30
C86: 13.1 | D86: 455 | E86: 00:07:35
C87: 13.1 | D87: 460 | E87: 00:07:40
C88: 13.2 | D88: 465 | E88: 00:07:45
C89: 13.2 | D89: 470 | E89: 00:07:50
C90: 13.3 | D90: 475 | E90: 00:07:55
C91: 13.3 | D91: 480 | E91: 00:08:00
C92: 13.4 | D92: 485 | E92: 00:08:05
C93: 13.4 | D93: 490 | E93: 00:08:10
C94: 13.5 | D94: 495 | E94: 00:08:15
C95: 13.6 | D95: 500 | E95: 00:08:20
C96: 13.6 | D96: 505 | E96: 00:08:25
C97: 13.7 | D97: 510 | E97: 00:08:30
C98: 13.7 | D98: 515 | E98: 00:08:35
C99: 13.8 | D99: 520 | E99: 00:08:40
C100: =(((D100-D$4)/45)*G$2)+B$4 -> 13.8 | D100: 525 | E100: 00:08:45
C101: 13.9 | D101: 530 | E101: 00:08:50
C102: 13.9 | D102: 535 | E102: 00:08:55
C103: 14.0 | D103: 540 | E103: 00:09:00
C104: 14.1 | D104: 545 | E104: 00:09:05
C105: 14.1 | D105: 550 | E105: 00:09:10
C106: 14.2 | D106: 555 | E106: 00:09:15
C107: 14.2 | D107: 560 | E107: 00:09:20
C108: 14.3 | D108: 565 | E108: 00:09:25
B109: =B100+G$2 ->  | C109: 14.3 | D109: 570 | E109: 00:09:30
C110: 14.4 | D110: 575 | E110: 00:09:35
C111: 14.4 | D111: 580 | E111: 00:09:40
C112: 14.5 | D112: 585 | E112: 00:09:45
C113: 14.6 | D113: 590 | E113: 00:09:50
C114: 14.6 | D114: 595 | E114: 00:09:55
C115: 14.7 | D115: 600 | E115: 00:10:00
C116: 14.7 | D116: 605 | E116: 00:10:05
C117: 14.8 | D117: 610 | E117: 00:10:10
C118: 14.8 | D118: 615 | E118: 00:10:15
C119: 14.9 | D119: 620 | E119: 00:10:20
C120: 14.9 | D120: 625 | E120: 00:10:25
C121: 15.0 | D121: 630 | E121: 00:10:30
C122: 15.1 | D122: 635 | E122: 00:10:35
C123: 15.1 | D123: 640 | E123: 00:10:40
C124: 15.2 | D124: 645 | E124: 00:10:45
C125: 15.2 | D125: 650 | E125: =D125*1/(3600*24) -> 00:10:50
C126: 15.3 | D126: 655 | E126: 00:10:55
C127: 15.3 | D127: 660 | E127: 00:11:00
C128: 15.4 | D128: 665 | E128: 00:11:05
C129: 15.4 | D129: 670 | E129: 00:11:10
C130: 15.5 | D130: 675 | E130: 00:11:15
C131: 15.6 | D131: 680 | E131: 00:11:20
C132: 15.6 | D132: 685 | E132: 00:11:25
C133: 15.7 | D133: 690 | E133: 00:11:30
C134: 15.7 | D134: 695 | E134: 00:11:35
C135: 15.8 | D135: 700 | E135: 00:11:40
C136: 15.8 | D136: 705 | E136: 00:11:45
C137: 15.9 | D137: 710 | E137: 00:11:50
C138: 15.9 | D138: 715 | E138: 00:11:55
C139: 16.0 | D139: 720 | E139: 00:12:00
C140: 16.1 | D140: 725 | E140: 00:12:05
C141: 16.1 | D141: 730 | E141: 00:12:10
C142: 16.2 | D142: 735 | E142: 00:12:15
C143: 16.2 | D143: 740 | E143: 00:12:20
C144: 16.3 | D144: 745 | E144: 00:12:25
C145: 16.3 | D145: 750 | E145: 00:12:30
C146: 16.4 | D146: 755 | E146: 00:12:35
C147: 16.4 | D147: 760 | E147: 00:12:40
C148: 16.5 | D148: 765 | E148: 00:12:45
C149: 16.6 | D149: 770 | E149: 00:12:50
C150: 16.6 | D150: 775 | E150: 00:12:55
C151: 16.7 | D151: 780 | E151: 00:13:00
C152: 16.7 | D152: 785 | E152: 00:13:05
C153: 16.8 | D153: 790 | E153: 00:13:10
C154: 16.8 | D154: 795 | E154: 00:13:15
C155: 16.9 | D155: 800 | E155: 00:13:20
C156: 16.9 | D156: 805 | E156: 00:13:25
C157: 17.0 | D157: 810 | E157: 00:13:30
C158: 17.1 | D158: 815 | E158: 00:13:35
C159: 17.1 | D159: 820 | E159: 00:13:40
C160: 17.2 | D160: 825 | E160: 00:13:45
C161: 17.2 | D161: 830 | E161: 00:13:50
C162: 17.3 | D162: 835 | E162: 00:13:55
C163: 17.3 | D163: 840 | E163: 00:14:00
C164: =(((D164-D$4)/45)*G$2)+B$4 -> 17.4 | D164: 845 | E164: 00:14:05
C165: 17.4 | D165: 850 | E165: 00:14:10
C166: 17.5 | D166: 855 | E166: 00:14:15
C167: 17.6 | D167: 860 | E167: 00:14:20
C168: 17.6 | D168: 865 | E168: 00:14:25
C169: 17.7 | D169: 870 | E169: 00:14:30
C170: 17.7 | D170: 875 | E170: 00:14:35
C171: 17.8 | D171: 880 | E171: 00:14:40
C172: 17.8 | D172: 885 | E172: 00:14:45
B173: =B164+G$2 ->  | C173: 17.9 | D173: 890 | E173: 00:14:50
C174: 17.9 | D174: 895 | E174: 00:14:55
C175: 18.0 | D175: 900 | E175: 00:15:00
C176: 18.1 | D176: 905 | E176: 00:15:05
C177: 18.1 | D177: 910 | E177: 00:15:10
C178: 18.2 | D178: 915 | E178: 00:15:15
C179: 18.2 | D179: 920 | E179: 00:15:20
C180: 18.3 | D180: 925 | E180: 00:15:25
C181: 18.3 | D181: 930 | E181: 00:15:30
C182: 18.4 | D182: 935 | E182: 00:15:35
C183: 18.4 | D183: 940 | E183: 00:15:40
C184: 18.5 | D184: 945 | E184: 00:15:45
C185: 18.6 | D185: 950 | E185: 00:15:50
C186: 18.6 | D186: 955 | E186: 00:15:55
C187: 18.7 | D187: 960 | E187: 00:16:00
C188: 18.7 | D188: 965 | E188: 00:16:05
C189: 18.8 | D189: 970 | E189: =D189*1/(3600*24) -> 00:16:10
C190: 18.8 | D190: 975 | E190: 00:16:15
C191: 18.9 | D191: 980 | E191: 00:16:20
C192: 18.9 | D192: 985 | E192: 00:16:25
C193: 19.0 | D193: 990 | E193: 00:16:30
C194: 19.1 | D194: 995 | E194: 00:16:35
C195: 19.1 | D195: 1000 | E195: 00:16:40
C196: 19.2 | D196: 1005 | E196: 00:16:45
C197: 19.2 | D197: 1010 | E197: 00:16:50
C198: 19.3 | D198: 1015 | E198: 00:16:55
C199: 19.3 | D199: 1020 | E199: 00:17:00
C200: 19.4 | D200: 1025 | E200: 00:17:05
C201: 19.4 | D201: 1030 | E201: 00:17:10
... 196 more rows

Sheet Übersicht Ergebnisse
B2: Mannschaft | D2: =IF(ISTEXT(AthletInnen!D1),AthletInnen!D1,"") -> 
B3: Datum | D3: =IF(ISTEXT(AthletInnen!D2),AthletInnen!D2,"") -> 
B5: =AthletInnen!B4 -> NR | C5: =AthletInnen!C4 -> Name, Vorname | D5: =AthletInnen!D4 -> Geb.Datum | E5: =AthletInnen!E4 -> Alter | F5: =AthletInnen!F4 -> Größe [m] | G5: =AthletInnen!G4 -> Gewicht [kg] | H5: Ruhe HF | I5: vmax aus IFT [km/h] | J5: HF max aus IFT [km/h] | K5: EHF30s | L5: EHF60s | M5: EHF90s | N5: Anaerobe Schwelle [m/s] | O5: Anaerobe Schwelle [km/h] | P5: VO2max [ml/min/kg] | Q5: VO2max km/h | R5: Herzfrequenzzonen ausgehend vom 30-15 IFT (Herzfrequenzbereiche können beliebig verändert werden) | AB5: Geschwindigkeitsempfehlungen [km/h] | AG5: Geschwindigkeitsempfehlungen [min/km]
H6: vor dem Test | I6: max.Geschwindigkeit im Test | J6: max. Herzfrequenz im Test | K6: Herzfrequenzerholung | Q6: Geschwindigkeit an VO2max | R6: 50 | S6: 59 | T6: 60 | U6: 69 | V6: 70 | W6: 79 | X6: 80 | Y6: 89 | Z6: 90 | AA6: 100 | AB6: REG | AC6: GA I | AD6: AEROB | AE6: ANAEROB | AF6: INTENSIV | AG6: REG | AH6: GA I | AI6: AEROB | AJ6: ANAEROB | AK6: INTENSIV
B7: =IF(ISNUMBER(AthletInnen!B5),AthletInnen!B5,"") -> 1 | C7: =IF(ISTEXT(AthletInnen!C5),AthletInnen!C5,"") ->  | D7: =IF(ISNUMBER(AthletInnen!D5),AthletInnen!D5,"") ->  | E7: =AthletInnen!E5 ->  | F7: =IF(ISNUMBER(AthletInnen!F5),AthletInnen!F5,"") ->  | G7: =IF(ISNUMBER(AthletInnen!G5),AthletInnen!G5,"") ->  | H7: =IF(ISNUMBER(AthletInnen!H5),AthletInnen!H5,"") ->  | I7: =IF(ISNUMBER('IFT 30-15 Testprotokoll'!L4),'IFT 30-15 Testprotokoll'!L4,"") ->  | J7: =IF(ISNUMBER(AthletInnen!I5),AthletInnen!I5,"") ->  | K7: =IF(ISNUMBER(AthletInnen!J5),AthletInnen!J5,"") ->  | L7: =IF(ISNUMBER(AthletInnen!K5),AthletInnen!K5,"") ->  | M7: =IF(ISNUMBER(AthletInnen!L5),AthletInnen!L5,"") ->  | N7: =IF(ISNUMBER(O7),O7/3.6,"") ->  | O7: =IF(ISNUMBER(Q7),Q7*0.85,"") ->  | P7: =IF(ISNUMBER(I7),28.3-(2.15*1)-(0.741*E7)-(0.0357*G7)+(0.0586*E7*I7)+(1.03*I7),"") ->  | Q7: =IF(ISNUMBER(I7),I7/1.2,"") ->  | R7: =IF(ISNUMBER(J7),R$6*J7/100,"") ->  | S7: =IF(ISNUMBER(J7),S$6*J7/100,"") ->  | T7: =IF(ISNUMBER(J7),T$6*J7/100,"") ->  | U7: =IF(ISNUMBER(J7),U$6*J7/100,"") ->  | V7: =IF(ISNUMBER(J7),V$6*J7/100,"") ->  | W7: =IF(ISNUMBER(J7),W$6*J7/100,"") ->  | X7: =IF(ISNUMBER(J7),X$6*J7/100,"") ->  | Y7: =IF(ISNUMBER(J7),Y$6*J7/100,"") ->  | Z7: =IF(ISNUMBER(J7),Z$6*J7/100,"") ->  | AA7: =IF(ISNUMBER(J7),AA$6*J7/100,"") ->  | AB7: =IF(ISNUMBER(AC7),AC7*0.9,"") ->  | AC7: =IF(ISNUMBER(AD7),AD7*0.9,"") ->  | AD7: =IF(ISNUMBER(AE7),AE7*0.9,"") ->  | AE7: =IF(ISNUMBER(O7),O7,"") ->  | AF7: =IF(ISNUMBER(AE7),AE7*1.1,"") ->  | AG7: =IF(ISNUMBER(AB7),TIME(0,0,1/(AB7/3600)),"") ->  | AH7: =IF(ISNUMBER(AC7),TIME(0,0,1/(AC7/3600)),"") ->  | AI7: =IF(ISNUMBER(AD7),TIME(0,0,1/(AD7/3600)),"") ->  | AJ7: =IF(ISNUMBER(AE7),TIME(0,0,1/(AE7/3600)),"") ->  | AK7: =IF(ISNUMBER(AF7),TIME(0,0,1/(AF7/3600)),"") -> 
B8: =IF(ISNUMBER(AthletInnen!B6),AthletInnen!B6,"") -> 2 | C8: =IF(ISTEXT(AthletInnen!C6),AthletInnen!C6,"") ->  | D8: =IF(ISNUMBER(AthletInnen!D6),AthletInnen!D6,"") ->  | E8: =AthletInnen!E6 ->  | F8: =IF(ISNUMBER(AthletInnen!F6),AthletInnen!F6,"") ->  | G8: =IF(ISNUMBER(AthletInnen!G6),AthletInnen!G6,"") ->  | H8: =IF(ISNUMBER(AthletInnen!H6),AthletInnen!H6,"") ->  | I8: =IF(ISNUMBER('IFT 30-15 Testprotokoll'!L5),'IFT 30-15 Testprotokoll'!L5,"") ->  | J8: =IF(ISNUMBER(AthletInnen!I6),AthletInnen!I6,"") ->  | K8: =IF(ISNUMBER(AthletInnen!J6),AthletInnen!J6,"") ->  | L8: =IF(ISNUMBER(AthletInnen!K6),AthletInnen!K6,"") ->  | M8: =IF(ISNUMBER(AthletInnen!L6),AthletInnen!L6,"") ->  | N8: =IF(ISNUMBER(O8),O8/3.6,"") ->  | O8: =IF(ISNUMBER(Q8),Q8*0.85,"") ->  | P8: =IF(ISNUMBER(I8),28.3-(2.15*1)-(0.741*E8)-(0.0357*G8)+(0.0586*E8*I8)+(1.03*I8),"") ->  | Q8: =IF(ISNUMBER(I8),I8/1.2,"") ->  | AB8: =IF(ISNUMBER(AC8),AC8*0.9,"") ->  | AD8: =IF(ISNUMBER(AE8),AE8*0.9,"") ->  | AE8: =IF(ISNUMBER(O8),O8,"") ->  | AF8: =IF(ISNUMBER(AE8),AE8*1.1,"") ->  | AG8: =IF(ISNUMBER(AB8),TIME(0,0,1/(AB8/3600)),"") ->  | AH8: =IF(ISNUMBER(AC8),TIME(0,0,1/(AC8/3600)),"") ->  | AI8: =IF(ISNUMBER(AD8),TIME(0,0,1/(AD8/3600)),"") ->  | AJ8: =IF(ISNUMBER(AE8),TIME(0,0,1/(AE8/3600)),"") ->  | AK8: =IF(ISNUMBER(AF8),TIME(0,0,1/(AF8/3600)),"") -> 
B9: =IF(ISNUMBER(AthletInnen!B7),AthletInnen!B7,"") -> 3 | C9: =IF(ISTEXT(AthletInnen!C7),AthletInnen!C7,"") ->  | D9: =IF(ISNUMBER(AthletInnen!D7),AthletInnen!D7,"") ->  | E9: =AthletInnen!E7 ->  | F9: =IF(ISNUMBER(AthletInnen!F7),AthletInnen!F7,"") ->  | G9: =IF(ISNUMBER(AthletInnen!G7),AthletInnen!G7,"") ->  | H9: =IF(ISNUMBER(AthletInnen!H7),AthletInnen!H7,"") ->  | I9: =IF(ISNUMBER('IFT 30-15 Testprotokoll'!L6),'IFT 30-15 Testprotokoll'!L6,"") ->  | J9: =IF(ISNUMBER(AthletInnen!I7),AthletInnen!I7,"") ->  | K9: =IF(ISNUMBER(AthletInnen!J7),AthletInnen!J7,"") ->  | L9: =IF(ISNUMBER(AthletInnen!K7),AthletInnen!K7,"") ->  | M9: =IF(ISNUMBER(AthletInnen!L7),AthletInnen!L7,"") ->  | AB9: =IF(ISNUMBER(AC9),AC9*0.9,"") ->  | AF9: =IF(ISNUMBER(AE9),AE9*1.1,"") -> 
B10: =IF(ISNUMBER(AthletInnen!B8),AthletInnen!B8,"") -> 4 | C10: =IF(ISTEXT(AthletInnen!C8),AthletInnen!C8,"") ->  | D10: =IF(ISNUMBER(AthletInnen!D8),AthletInnen!D8,"") ->  | E10: =AthletInnen!E8 ->  | F10: =IF(ISNUMBER(AthletInnen!F8),AthletInnen!F8,"") ->  | G10: =IF(ISNUMBER(AthletInnen!G8),AthletInnen!G8,"") ->  | H10: =IF(ISNUMBER(AthletInnen!H8),AthletInnen!H8,"") ->  | I10: =IF(ISNUMBER('IFT 30-15 Testprotokoll'!L7),'IFT 30-15 Testprotokoll'!L7,"") ->  | J10: =IF(ISNUMBER(AthletInnen!I8),AthletInnen!I8,"") ->  | K10: =IF(ISNUMBER(AthletInnen!J8),AthletInnen!J8,"") ->  | L10: =IF(ISNUMBER(AthletInnen!K8),AthletInnen!K8,"") ->  | M10: =IF(ISNUMBER(AthletInnen!L8),AthletInnen!L8,"") ->  | AB10: =IF(ISNUMBER(AC10),AC10*0.9,"") -> 
B11: =IF(ISNUMBER(AthletInnen!B9),AthletInnen!B9,"") -> 5 | C11: =IF(ISTEXT(AthletInnen!C9),AthletInnen!C9,"") ->  | D11: =IF(ISNUMBER(AthletInnen!D9),AthletInnen!D9,"") ->  | E11: =AthletInnen!E9 ->  | F11: =IF(ISNUMBER(AthletInnen!F9),AthletInnen!F9,"") ->  | G11: =IF(ISNUMBER(AthletInnen!G9),AthletInnen!G9,"") ->  | H11: =IF(ISNUMBER(AthletInnen!H9),AthletInnen!H9,"") ->  | I11: =IF(ISNUMBER('IFT 30-15 Testprotokoll'!L8),'IFT 30-15 Testprotokoll'!L8,"") ->  | J11: =IF(ISNUMBER(AthletInnen!I9),AthletInnen!I9,"") ->  | K11: =IF(ISNUMBER(AthletInnen!J9),AthletInnen!J9,"") ->  | L11: =IF(ISNUMBER(AthletInnen!K9),AthletInnen!K9,"") ->  | M11: =IF(ISNUMBER(AthletInnen!L9),AthletInnen!L9,"") ->  | AB11: =IF(ISNUMBER(AC11),AC11*0.9,"") -> 
B12: =IF(ISNUMBER(AthletInnen!B10),AthletInnen!B10,"") -> 6 | C12: =IF(ISTEXT(AthletInnen!C10),AthletInnen!C10,"") ->  | D12: =IF(ISNUMBER(AthletInnen!D10),AthletInnen!D10,"") ->  | E12: =AthletInnen!E10 ->  | F12: =IF(ISNUMBER(AthletInnen!F10),AthletInnen!F10,"") ->  | G12: =IF(ISNUMBER(AthletInnen!G10),AthletInnen!G10,"") ->  | H12: =IF(ISNUMBER(AthletInnen!H10),AthletInnen!H10,"") ->  | I12: =IF(ISNUMBER('IFT 30-15 Testprotokoll'!L9),'IFT 30-15 Testprotokoll'!L9,"") ->  | J12: =IF(ISNUMBER(AthletInnen!I10),AthletInnen!I10,"") ->  | K12: =IF(ISNUMBER(AthletInnen!J10),AthletInnen!J10,"") ->  | L12: =IF(ISNUMBER(AthletInnen!K10),AthletInnen!K10,"") ->  | M12: =IF(ISNUMBER(AthletInnen!L10),AthletInnen!L10,"") ->  | P12: =IF(ISNUMBER(I12),28.3-(2.15*1)-(0.741*E12)-(0.0357*G12)+(0.0586*E12*I12)+(1.03*I12),"") ->  | AB12: =IF(ISNUMBER(AC12),AC12*0.9,"") -> 
B13: =IF(ISNUMBER(AthletInnen!B11),AthletInnen!B11,"") -> 7 | C13: =IF(ISTEXT(AthletInnen!C11),AthletInnen!C11,"") ->  | D13: =IF(ISNUMBER(AthletInnen!D11),AthletInnen!D11,"") ->  | E13: =AthletInnen!E11 ->  | F13: =IF(ISNUMBER(AthletInnen!F11),AthletInnen!F11,"") ->  | G13: =IF(ISNUMBER(AthletInnen!G11),AthletInnen!G11,"") ->  | H13: =IF(ISNUMBER(AthletInnen!H11),AthletInnen!H11,"") ->  | I13: =IF(ISNUMBER('IFT 30-15 Testprotokoll'!L10),'IFT 30-15 Testprotokoll'!L10,"") ->  | J13: =IF(ISNUMBER(AthletInnen!I11),AthletInnen!I11,"") ->  | K13: =IF(ISNUMBER(AthletInnen!J11),AthletInnen!J11,"") ->  | L13: =IF(ISNUMBER(AthletInnen!K11),AthletInnen!K11,"") ->  | M13: =IF(ISNUMBER(AthletInnen!L11),AthletInnen!L11,"") ->  | AB13: =IF(ISNUMBER(AC13),AC13*0.9,"") -> 
B14: =IF(ISNUMBER(AthletInnen!B12),AthletInnen!B12,"") -> 8 | C14: =IF(ISTEXT(AthletInnen!C12),AthletInnen!C12,"") ->  | D14: =IF(ISNUMBER(AthletInnen!D12),AthletInnen!D12,"") ->  | E14: =AthletInnen!E12 ->  | F14: =IF(ISNUMBER(AthletInnen!F12),AthletInnen!F12,"") ->  | G14: =IF(ISNUMBER(AthletInnen!G12),AthletInnen!G12,"") ->  | H14: =IF(ISNUMBER(AthletInnen!H12),AthletInnen!H12,"") ->  | I14: =IF(ISNUMBER('IFT 30-15 Testprotokoll'!L11),'IFT 30-15 Testprotokoll'!L11,"") ->  | J14: =IF(ISNUMBER(AthletInnen!I12),AthletInnen!I12,"") ->  | K14: =IF(ISNUMBER(AthletInnen!J12),AthletInnen!J12,"") ->  | L14: =IF(ISNUMBER(AthletInnen!K12),AthletInnen!K12,"") ->  | M14: =IF(ISNUMBER(AthletInnen!L12),AthletInnen!L12,"") ->  | AB14: =IF(ISNUMBER(AC14),AC14*0.9,"") -> 
B15: =IF(ISNUMBER(AthletInnen!B13),AthletInnen!B13,"") -> 9 | C15: =IF(ISTEXT(AthletInnen!C13),AthletInnen!C13,"") ->  | D15: =IF(ISNUMBER(AthletInnen!D13),AthletInnen!D13,"") ->  | E15: =AthletInnen!E13 ->  | F15: =IF(ISNUMBER(AthletInnen!F13),AthletInnen!F13,"") ->  | G15: =IF(ISNUMBER(AthletInnen!G13),AthletInnen!G13,"") ->  | H15: =IF(ISNUMBER(AthletInnen!H13),AthletInnen!H13,"") ->  | I15: =IF(ISNUMBER('IFT 30-15 Testprotokoll'!L12),'IFT 30-15 Testprotokoll'!L12,"") ->  | J15: =IF(ISNUMBER(AthletInnen!I13),AthletInnen!I13,"") ->  | K15: =IF(ISNUMBER(AthletInnen!J13),AthletInnen!J13,"") ->  | L15: =IF(ISNUMBER(AthletInnen!K13),AthletInnen!K13,"") ->  | M15: =IF(ISNUMBER(AthletInnen!L13),AthletInnen!L13,"") ->  | AB15: =IF(ISNUMBER(AC15),AC15*0.9,"") -> 
B16: =IF(ISNUMBER(AthletInnen!B14),AthletInnen!B14,"") -> 10 | C16: =IF(ISTEXT(AthletInnen!C14),AthletInnen!C14,"") ->  | D16: =IF(ISNUMBER(AthletInnen!D14),AthletInnen!D14,"") ->  | E16: =AthletInnen!E14 ->  | F16: =IF(ISNUMBER(AthletInnen!F14),AthletInnen!F14,"") ->  | G16: =IF(ISNUMBER(AthletInnen!G14),AthletInnen!G14,"") ->  | H16: =IF(ISNUMBER(AthletInnen!H14),AthletInnen!H14,"") ->  | I16: =IF(ISNUMBER('IFT 30-15 Testprotokoll'!L13),'IFT 30-15 Testprotokoll'!L13,"") ->  | J16: =IF(ISNUMBER(AthletInnen!I14),AthletInnen!I14,"") ->  | K16: =IF(ISNUMBER(AthletInnen!J14),AthletInnen!J14,"") ->  | L16: =IF(ISNUMBER(AthletInnen!K14),AthletInnen!K14,"") ->  | M16: =IF(ISNUMBER(AthletInnen!L14),AthletInnen!L14,"") ->  | AB16: =IF(ISNUMBER(AC16),AC16*0.9,"") -> 
B17: =IF(ISNUMBER(AthletInnen!B15),AthletInnen!B15,"") -> 11 | C17: =IF(ISTEXT(AthletInnen!C15),AthletInnen!C15,"") ->  | D17: =IF(ISNUMBER(AthletInnen!D15),AthletInnen!D15,"") ->  | E17: =AthletInnen!E15 ->  | F17: =IF(ISNUMBER(AthletInnen!F15),AthletInnen!F15,"") ->  | G17: =IF(ISNUMBER(AthletInnen!G15),AthletInnen!G15,"") ->  | H17: =IF(ISNUMBER(AthletInnen!H15),AthletInnen!H15,"") ->  | I17: =IF(ISNUMBER('IFT 30-15 Testprotokoll'!L14),'IFT 30-15 Testprotokoll'!L14,"") ->  | J17: =IF(ISNUMBER(AthletInnen!I15),AthletInnen!I15,"") ->  | K17: =IF(ISNUMBER(AthletInnen!J15),AthletInnen!J15,"") ->  | L17: =IF(ISNUMBER(AthletInnen!K15),AthletInnen!K15,"") ->  | M17: =IF(ISNUMBER(AthletInnen!L15),AthletInnen!L15,"") ->  | AB17: =IF(ISNUMBER(AC17),AC17*0.9,"") -> 
B18: =IF(ISNUMBER(AthletInnen!B16),AthletInnen!B16,"") -> 12 | C18: =IF(ISTEXT(AthletInnen!C16),AthletInnen!C16,"") ->  | D18: =IF(ISNUMBER(AthletInnen!D16),AthletInnen!D16,"") ->  | E18: =AthletInnen!E16 ->  | F18: =IF(ISNUMBER(AthletInnen!F16),AthletInnen!F16,"") ->  | G18: =IF(ISNUMBER(AthletInnen!G16),AthletInnen!G16,"") ->  | H18: =IF(ISNUMBER(AthletInnen!H16),AthletInnen!H16,"") ->  | I18: =IF(ISNUMBER('IFT 30-15 Testprotokoll'!L15),'IFT 30-15 Testprotokoll'!L15,"") ->  | J18: =IF(ISNUMBER(AthletInnen!I16),AthletInnen!I16,"") ->  | K18: =IF(ISNUMBER(AthletInnen!J16),AthletInnen!J16,"") ->  | L18: =IF(ISNUMBER(AthletInnen!K16),AthletInnen!K16,"") ->  | M18: =IF(ISNUMBER(AthletInnen!L16),AthletInnen!L16,"") ->  | AB18: =IF(ISNUMBER(AC18),AC18*0.9,"") -> 
B19: =IF(ISNUMBER(AthletInnen!B17),AthletInnen!B17,"") -> 13 | C19: =IF(ISTEXT(AthletInnen!C17),AthletInnen!C17,"") ->  | D19: =IF(ISNUMBER(AthletInnen!D17),AthletInnen!D17,"") ->  | E19: =AthletInnen!E17 ->  | F19: =IF(ISNUMBER(AthletInnen!F17),AthletInnen!F17,"") ->  | G19: =IF(ISNUMBER(AthletInnen!G17),AthletInnen!G17,"") ->  | H19: =IF(ISNUMBER(AthletInnen!H17),AthletInnen!H17,"") ->  | I19: =IF(ISNUMBER('IFT 30-15 Testprotokoll'!L16),'IFT 30-15 Testprotokoll'!L16,"") ->  | J19: =IF(ISNUMBER(AthletInnen!I17),AthletInnen!I17,"") ->  | K19: =IF(ISNUMBER(AthletInnen!J17),AthletInnen!J17,"") ->  | L19: =IF(ISNUMBER(AthletInnen!K17),AthletInnen!K17,"") ->  | M19: =IF(ISNUMBER(AthletInnen!L17),AthletInnen!L17,"") ->  | AB19: =IF(ISNUMBER(AC19),AC19*0.9,"") -> 
B20: =IF(ISNUMBER(AthletInnen!B18),AthletInnen!B18,"") -> 14 | C20: =IF(ISTEXT(AthletInnen!C18),AthletInnen!C18,"") ->  | D20: =IF(ISNUMBER(AthletInnen!D18),AthletInnen!D18,"") ->  | E20: =AthletInnen!E18 ->  | F20: =IF(ISNUMBER(AthletInnen!F18),AthletInnen!F18,"") ->  | G20: =IF(ISNUMBER(AthletInnen!G18),AthletInnen!G18,"") ->  | H20: =IF(ISNUMBER(AthletInnen!H18),AthletInnen!H18,"") ->  | I20: =IF(ISNUMBER('IFT 30-15 Testprotokoll'!L17),'IFT 30-15 Testprotokoll'!L17,"") ->  | J20: =IF(ISNUMBER(AthletInnen!I18),AthletInnen!I18,"") ->  | K20: =IF(ISNUMBER(AthletInnen!J18),AthletInnen!J18,"") ->  | L20: =IF(ISNUMBER(AthletInnen!K18),AthletInnen!K18,"") ->  | M20: =IF(ISNUMBER(AthletInnen!L18),AthletInnen!L18,"") ->  | AB20: =IF(ISNUMBER(AC20),AC20*0.9,"") -> 
B21: =IF(ISNUMBER(AthletInnen!B19),AthletInnen!B19,"") -> 15 | C21: =IF(ISTEXT(AthletInnen!C19),AthletInnen!C19,"") ->  | D21: =IF(ISNUMBER(AthletInnen!D19),AthletInnen!D19,"") ->  | E21: =AthletInnen!E19 ->  | F21: =IF(ISNUMBER(AthletInnen!F19),AthletInnen!F19,"") ->  | G21: =IF(ISNUMBER(AthletInnen!G19),AthletInnen!G19,"") ->  | H21: =IF(ISNUMBER(AthletInnen!H19),AthletInnen!H19,"") ->  | I21: =IF(ISNUMBER('IFT 30-15 Testprotokoll'!L18),'IFT 30-15 Testprotokoll'!L18,"") ->  | J21: =IF(ISNUMBER(AthletInnen!I19),AthletInnen!I19,"") ->  | K21: =IF(ISNUMBER(AthletInnen!J19),AthletInnen!J19,"") ->  | L21: =IF(ISNUMBER(AthletInnen!K19),AthletInnen!K19,"") ->  | M21: =IF(ISNUMBER(AthletInnen!L19),AthletInnen!L19,"") ->  | AB21: =IF(ISNUMBER(AC21),AC21*0.9,"") -> 
B22: =IF(ISNUMBER(AthletInnen!B20),AthletInnen!B20,"") -> 16 | C22: =IF(ISTEXT(AthletInnen!C20),AthletInnen!C20,"") ->  | D22: =IF(ISNUMBER(AthletInnen!D20),AthletInnen!D20,"") ->  | E22: =AthletInnen!E20 ->  | F22: =IF(ISNUMBER(AthletInnen!F20),AthletInnen!F20,"") ->  | G22: =IF(ISNUMBER(AthletInnen!G20),AthletInnen!G20,"") ->  | H22: =IF(ISNUMBER(AthletInnen!H20),AthletInnen!H20,"") ->  | I22: =IF(ISNUMBER('IFT 30-15 Testprotokoll'!L19),'IFT 30-15 Testprotokoll'!L19,"") ->  | J22: =IF(ISNUMBER(AthletInnen!I20),AthletInnen!I20,"") ->  | K22: =IF(ISNUMBER(AthletInnen!J20),AthletInnen!J20,"") ->  | L22: =IF(ISNUMBER(AthletInnen!K20),AthletInnen!K20,"") ->  | M22: =IF(ISNUMBER(AthletInnen!L20),AthletInnen!L20,"") ->  | AB22: =IF(ISNUMBER(AC22),AC22*0.9,"") -> 
B23: =IF(ISNUMBER(AthletInnen!B21),AthletInnen!B21,"") -> 17 | C23: =IF(ISTEXT(AthletInnen!C21),AthletInnen!C21,"") ->  | D23: =IF(ISNUMBER(AthletInnen!D21),AthletInnen!D21,"") ->  | E23: =AthletInnen!E21 ->  | F23: =IF(ISNUMBER(AthletInnen!F21),AthletInnen!F21,"") ->  | G23: =IF(ISNUMBER(AthletInnen!G21),AthletInnen!G21,"") ->  | H23: =IF(ISNUMBER(AthletInnen!H21),AthletInnen!H21,"") ->  | I23: =IF(ISNUMBER('IFT 30-15 Testprotokoll'!L20),'IFT 30-15 Testprotokoll'!L20,"") ->  | J23: =IF(ISNUMBER(AthletInnen!I21),AthletInnen!I21,"") ->  | K23: =IF(ISNUMBER(AthletInnen!J21),AthletInnen!J21,"") ->  | L23: =IF(ISNUMBER(AthletInnen!K21),AthletInnen!K21,"") ->  | M23: =IF(ISNUMBER(AthletInnen!L21),AthletInnen!L21,"") ->  | AB23: =IF(ISNUMBER(AC23),AC23*0.9,"") -> 
B24: =IF(ISNUMBER(AthletInnen!B22),AthletInnen!B22,"") -> 18 | C24: =IF(ISTEXT(AthletInnen!C22),AthletInnen!C22,"") ->  | D24: =IF(ISNUMBER(AthletInnen!D22),AthletInnen!D22,"") ->  | E24: =AthletInnen!E22 ->  | F24: =IF(ISNUMBER(AthletInnen!F22),AthletInnen!F22,"") ->  | G24: =IF(ISNUMBER(AthletInnen!G22),AthletInnen!G22,"") ->  | H24: =IF(ISNUMBER(AthletInnen!H22),AthletInnen!H22,"") ->  | I24: =IF(ISNUMBER('IFT 30-15 Testprotokoll'!L21),'IFT 30-15 Testprotokoll'!L21,"") ->  | J24: =IF(ISNUMBER(AthletInnen!I22),AthletInnen!I22,"") ->  | K24: =IF(ISNUMBER(AthletInnen!J22),AthletInnen!J22,"") ->  | L24: =IF(ISNUMBER(AthletInnen!K22),AthletInnen!K22,"") ->  | M24: =IF(ISNUMBER(AthletInnen!L22),AthletInnen!L22,"") ->  | AB24: =IF(ISNUMBER(AC24),AC24*0.9,"") -> 
B25: =IF(ISNUMBER(AthletInnen!B23),AthletInnen!B23,"") -> 19 | C25: =IF(ISTEXT(AthletInnen!C23),AthletInnen!C23,"") ->  | D25: =IF(ISNUMBER(AthletInnen!D23),AthletInnen!D23,"") ->  | E25: =AthletInnen!E23 ->  | F25: =IF(ISNUMBER(AthletInnen!F23),AthletInnen!F23,"") ->  | G25: =IF(ISNUMBER(AthletInnen!G23),AthletInnen!G23,"") ->  | H25: =IF(ISNUMBER(AthletInnen!H23),AthletInnen!H23,"") ->  | I25: =IF(ISNUMBER('IFT 30-15 Testprotokoll'!L22),'IFT 30-15 Testprotokoll'!L22,"") ->  | J25: =IF(ISNUMBER(AthletInnen!I23),AthletInnen!I23,"") ->  | K25: =IF(ISNUMBER(AthletInnen!J23),AthletInnen!J23,"") ->  | L25: =IF(ISNUMBER(AthletInnen!K23),AthletInnen!K23,"") ->  | M25: =IF(ISNUMBER(AthletInnen!L23),AthletInnen!L23,"") ->  | AB25: =IF(ISNUMBER(AC25),AC25*0.9,"") -> 
B26: =IF(ISNUMBER(AthletInnen!B24),AthletInnen!B24,"") -> 20 | C26: =IF(ISTEXT(AthletInnen!C24),AthletInnen!C24,"") ->  | D26: =IF(ISNUMBER(AthletInnen!D24),AthletInnen!D24,"") ->  | E26: =AthletInnen!E24 ->  | F26: =IF(ISNUMBER(AthletInnen!F24),AthletInnen!F24,"") ->  | G26: =IF(ISNUMBER(AthletInnen!G24),AthletInnen!G24,"") ->  | H26: =IF(ISNUMBER(AthletInnen!H24),AthletInnen!H24,"") ->  | I26: =IF(ISNUMBER('IFT 30-15 Testprotokoll'!L23),'IFT 30-15 Testprotokoll'!L23,"") ->  | J26: =IF(ISNUMBER(AthletInnen!I24),AthletInnen!I24,"") ->  | K26: =IF(ISNUMBER(AthletInnen!J24),AthletInnen!J24,"") ->  | L26: =IF(ISNUMBER(AthletInnen!K24),AthletInnen!K24,"") ->  | M26: =IF(ISNUMBER(AthletInnen!L24),AthletInnen!L24,"") ->  | AB26: =IF(ISNUMBER(AC26),AC26*0.9,"") -> 
B27: =IF(ISNUMBER(AthletInnen!B25),AthletInnen!B25,"") -> 21 | C27: =IF(ISTEXT(AthletInnen!C25),AthletInnen!C25,"") ->  | D27: =IF(ISNUMBER(AthletInnen!D25),AthletInnen!D25,"") ->  | E27: =AthletInnen!E25 ->  | F27: =IF(ISNUMBER(AthletInnen!F25),AthletInnen!F25,"") ->  | G27: =IF(ISNUMBER(AthletInnen!G25),AthletInnen!G25,"") ->  | H27: =IF(ISNUMBER(AthletInnen!H25),AthletInnen!H25,"") ->  | I27: =IF(ISNUMBER('IFT 30-15 Testprotokoll'!L24),'IFT 30-15 Testprotokoll'!L24,"") ->  | J27: =IF(ISNUMBER(AthletInnen!I25),AthletInnen!I25,"") ->  | K27: =IF(ISNUMBER(AthletInnen!J25),AthletInnen!J25,"") ->  | L27: =IF(ISNUMBER(AthletInnen!K25),AthletInnen!K25,"") ->  | M27: =IF(ISNUMBER(AthletInnen!L25),AthletInnen!L25,"") ->  | AB27: =IF(ISNUMBER(AC27),AC27*0.9,"") -> 
B28: =IF(ISNUMBER(AthletInnen!B26),AthletInnen!B26,"") -> 22 | C28: =IF(ISTEXT(AthletInnen!C26),AthletInnen!C26,"") ->  | D28: =IF(ISNUMBER(AthletInnen!D26),AthletInnen!D26,"") ->  | E28: =AthletInnen!E26 ->  | F28: =IF(ISNUMBER(AthletInnen!F26),AthletInnen!F26,"") ->  | G28: =IF(ISNUMBER(AthletInnen!G26),AthletInnen!G26,"") ->  | H28: =IF(ISNUMBER(AthletInnen!H26),AthletInnen!H26,"") ->  | I28: =IF(ISNUMBER('IFT 30-15 Testprotokoll'!L25),'IFT 30-15 Testprotokoll'!L25,"") ->  | J28: =IF(ISNUMBER(AthletInnen!I26),AthletInnen!I26,"") ->  | K28: =IF(ISNUMBER(AthletInnen!J26),AthletInnen!J26,"") ->  | L28: =IF(ISNUMBER(AthletInnen!K26),AthletInnen!K26,"") ->  | M28: =IF(ISNUMBER(AthletInnen!L26),AthletInnen!L26,"") ->  | AB28: =IF(ISNUMBER(AC28),AC28*0.9,"") -> 
B29: =IF(ISNUMBER(AthletInnen!B27),AthletInnen!B27,"") -> 23 | C29: =IF(ISTEXT(AthletInnen!C27),AthletInnen!C27,"") ->  | D29: =IF(ISNUMBER(AthletInnen!D27),AthletInnen!D27,"") ->  | E29: =AthletInnen!E27 ->  | F29: =IF(ISNUMBER(AthletInnen!F27),AthletInnen!F27,"") ->  | G29: =IF(ISNUMBER(AthletInnen!G27),AthletInnen!G27,"") ->  | H29: =IF(ISNUMBER(AthletInnen!H27),AthletInnen!H27,"") ->  | I29: =IF(ISNUMBER('IFT 30-15 Testprotokoll'!L26),'IFT 30-15 Testprotokoll'!L26,"") ->  | J29: =IF(ISNUMBER(AthletInnen!I27),AthletInnen!I27,"") ->  | K29: =IF(ISNUMBER(AthletInnen!J27),AthletInnen!J27,"") ->  | L29: =IF(ISNUMBER(AthletInnen!K27),AthletInnen!K27,"") ->  | M29: =IF(ISNUMBER(AthletInnen!L27),AthletInnen!L27,"") ->  | AB29: =IF(ISNUMBER(AC29),AC29*0.9,"") -> 
B30: =IF(ISNUMBER(AthletInnen!B28),AthletInnen!B28,"") -> 24 | C30: =IF(ISTEXT(AthletInnen!C28),AthletInnen!C28,"") ->  | D30: =IF(ISNUMBER(AthletInnen!D28),AthletInnen!D28,"") ->  | E30: =AthletInnen!E28 ->  | F30: =IF(ISNUMBER(AthletInnen!F28),AthletInnen!F28,"") ->  | G30: =IF(ISNUMBER(AthletInnen!G28),AthletInnen!G28,"") ->  | H30: =IF(ISNUMBER(AthletInnen!H28),AthletInnen!H28,"") ->  | I30: =IF(ISNUMBER('IFT 30-15 Testprotokoll'!L27),'IFT 30-15 Testprotokoll'!L27,"") ->  | J30: =IF(ISNUMBER(AthletInnen!I28),AthletInnen!I28,"") ->  | K30: =IF(ISNUMBER(AthletInnen!J28),AthletInnen!J28,"") ->  | L30: =IF(ISNUMBER(AthletInnen!K28),AthletInnen!K28,"") ->  | M30: =IF(ISNUMBER(AthletInnen!L28),AthletInnen!L28,"") ->  | AB30: =IF(ISNUMBER(AC30),AC30*0.9,"") -> 
B31: =IF(ISNUMBER(AthletInnen!B29),AthletInnen!B29,"") -> 25 | C31: =IF(ISTEXT(AthletInnen!C29),AthletInnen!C29,"") ->  | D31: =IF(ISNUMBER(AthletInnen!D29),AthletInnen!D29,"") ->  | E31: =AthletInnen!E29 ->  | F31: =IF(ISNUMBER(AthletInnen!F29),AthletInnen!F29,"") ->  | G31: =IF(ISNUMBER(AthletInnen!G29),AthletInnen!G29,"") ->  | H31: =IF(ISNUMBER(AthletInnen!H29),AthletInnen!H29,"") ->  | I31: =IF(ISNUMBER('IFT 30-15 Testprotokoll'!L28),'IFT 30-15 Testprotokoll'!L28,"") ->  | J31: =IF(ISNUMBER(AthletInnen!I29),AthletInnen!I29,"") ->  | K31: =IF(ISNUMBER(AthletInnen!J29),AthletInnen!J29,"") ->  | L31: =IF(ISNUMBER(AthletInnen!K29),AthletInnen!K29,"") ->  | M31: =IF(ISNUMBER(AthletInnen!L29),AthletInnen!L29,"") ->  | AB31: =IF(ISNUMBER(AC31),AC31*0.9,"") -> 
B32: =IF(ISNUMBER(AthletInnen!B30),AthletInnen!B30,"") -> 26 | C32: =IF(ISTEXT(AthletInnen!C30),AthletInnen!C30,"") ->  | D32: =IF(ISNUMBER(AthletInnen!D30),AthletInnen!D30,"") ->  | E32: =AthletInnen!E30 ->  | F32: =IF(ISNUMBER(AthletInnen!F30),AthletInnen!F30,"") ->  | G32: =IF(ISNUMBER(AthletInnen!G30),AthletInnen!G30,"") ->  | H32: =IF(ISNUMBER(AthletInnen!H30),AthletInnen!H30,"") ->  | I32: =IF(ISNUMBER('IFT 30-15 Testprotokoll'!L29),'IFT 30-15 Testprotokoll'!L29,"") ->  | J32: =IF(ISNUMBER(AthletInnen!I30),AthletInnen!I30,"") ->  | K32: =IF(ISNUMBER(AthletInnen!J30),AthletInnen!J30,"") ->  | L32: =IF(ISNUMBER(AthletInnen!K30),AthletInnen!K30,"") ->  | M32: =IF(ISNUMBER(AthletInnen!L30),AthletInnen!L30,"") ->  | AB32: =IF(ISNUMBER(AC32),AC32*0.9,"") -> 
B33: =IF(ISNUMBER(AthletInnen!B31),AthletInnen!B31,"") -> 27 | C33: =IF(ISTEXT(AthletInnen!C31),AthletInnen!C31,"") ->  | D33: =IF(ISNUMBER(AthletInnen!D31),AthletInnen!D31,"") ->  | E33: =AthletInnen!E31 ->  | F33: =IF(ISNUMBER(AthletInnen!F31),AthletInnen!F31,"") ->  | G33: =IF(ISNUMBER(AthletInnen!G31),AthletInnen!G31,"") ->  | H33: =IF(ISNUMBER(AthletInnen!H31),AthletInnen!H31,"") ->  | I33: =IF(ISNUMBER('IFT 30-15 Testprotokoll'!L30),'IFT 30-15 Testprotokoll'!L30,"") ->  | J33: =IF(ISNUMBER(AthletInnen!I31),AthletInnen!I31,"") ->  | K33: =IF(ISNUMBER(AthletInnen!J31),AthletInnen!J31,"") ->  | L33: =IF(ISNUMBER(AthletInnen!K31),AthletInnen!K31,"") ->  | M33: =IF(ISNUMBER(AthletInnen!L31),AthletInnen!L31,"") ->  | AB33: =IF(ISNUMBER(AC33),AC33*0.9,"") -> 
B34: =IF(ISNUMBER(AthletInnen!B32),AthletInnen!B32,"") -> 28 | C34: =IF(ISTEXT(AthletInnen!C32),AthletInnen!C32,"") ->  | D34: =IF(ISNUMBER(AthletInnen!D32),AthletInnen!D32,"") ->  | E34: =AthletInnen!E32 ->  | F34: =IF(ISNUMBER(AthletInnen!F32),AthletInnen!F32,"") ->  | G34: =IF(ISNUMBER(AthletInnen!G32),AthletInnen!G32,"") ->  | H34: =IF(ISNUMBER(AthletInnen!H32),AthletInnen!H32,"") ->  | I34: =IF(ISNUMBER('IFT 30-15 Testprotokoll'!L31),'IFT 30-15 Testprotokoll'!L31,"") ->  | J34: =IF(ISNUMBER(AthletInnen!I32),AthletInnen!I32,"") ->  | K34: =IF(ISNUMBER(AthletInnen!J32),AthletInnen!J32,"") ->  | L34: =IF(ISNUMBER(AthletInnen!K32),AthletInnen!K32,"") ->  | M34: =IF(ISNUMBER(AthletInnen!L32),AthletInnen!L32,"") ->  | AB34: =IF(ISNUMBER(AC34),AC34*0.9,"") -> 
B35: =IF(ISNUMBER(AthletInnen!B33),AthletInnen!B33,"") -> 29 | C35: =IF(ISTEXT(AthletInnen!C33),AthletInnen!C33,"") ->  | D35: =IF(ISNUMBER(AthletInnen!D33),AthletInnen!D33,"") ->  | E35: =AthletInnen!E33 ->  | F35: =IF(ISNUMBER(AthletInnen!F33),AthletInnen!F33,"") ->  | G35: =IF(ISNUMBER(AthletInnen!G33),AthletInnen!G33,"") ->  | H35: =IF(ISNUMBER(AthletInnen!H33),AthletInnen!H33,"") ->  | I35: =IF(ISNUMBER('IFT 30-15 Testprotokoll'!L32),'IFT 30-15 Testprotokoll'!L32,"") ->  | J35: =IF(ISNUMBER(AthletInnen!I33),AthletInnen!I33,"") ->  | K35: =IF(ISNUMBER(AthletInnen!J33),AthletInnen!J33,"") ->  | L35: =IF(ISNUMBER(AthletInnen!K33),AthletInnen!K33,"") ->  | M35: =IF(ISNUMBER(AthletInnen!L33),AthletInnen!L33,"") ->  | AB35: =IF(ISNUMBER(AC35),AC35*0.9,"") -> 
B36: =IF(ISNUMBER(AthletInnen!B34),AthletInnen!B34,"") -> 30 | C36: =IF(ISTEXT(AthletInnen!C34),AthletInnen!C34,"") ->  | D36: =IF(ISNUMBER(AthletInnen!D34),AthletInnen!D34,"") ->  | E36: =AthletInnen!E34 ->  | F36: =IF(ISNUMBER(AthletInnen!F34),AthletInnen!F34,"") ->  | G36: =IF(ISNUMBER(AthletInnen!G34),AthletInnen!G34,"") ->  | H36: =IF(ISNUMBER(AthletInnen!H34),AthletInnen!H34,"") ->  | I36: =IF(ISNUMBER('IFT 30-15 Testprotokoll'!L33),'IFT 30-15 Testprotokoll'!L33,"") ->  | J36: =IF(ISNUMBER(AthletInnen!I34),AthletInnen!I34,"") ->  | K36: =IF(ISNUMBER(AthletInnen!J34),AthletInnen!J34,"") ->  | L36: =IF(ISNUMBER(AthletInnen!K34),AthletInnen!K34,"") ->  | M36: =IF(ISNUMBER(AthletInnen!L34),AthletInnen!L34,"") ->  | AB36: =IF(ISNUMBER(AC36),AC36*0.9,"") -> 
B37: =IF(ISNUMBER(AthletInnen!B35),AthletInnen!B35,"") -> 31 | C37: =IF(ISTEXT(AthletInnen!C35),AthletInnen!C35,"") ->  | D37: =IF(ISNUMBER(AthletInnen!D35),AthletInnen!D35,"") ->  | E37: =AthletInnen!E35 ->  | F37: =IF(ISNUMBER(AthletInnen!F35),AthletInnen!F35,"") ->  | G37: =IF(ISNUMBER(AthletInnen!G35),AthletInnen!G35,"") ->  | H37: =IF(ISNUMBER(AthletInnen!H35),AthletInnen!H35,"") ->  | I37: =IF(ISNUMBER('IFT 30-15 Testprotokoll'!L34),'IFT 30-15 Testprotokoll'!L34,"") ->  | J37: =IF(ISNUMBER(AthletInnen!I35),AthletInnen!I35,"") ->  | K37: =IF(ISNUMBER(AthletInnen!J35),AthletInnen!J35,"") ->  | L37: =IF(ISNUMBER(AthletInnen!K35),AthletInnen!K35,"") ->  | M37: =IF(ISNUMBER(AthletInnen!L35),AthletInnen!L35,"") ->  | AB37: =IF(ISNUMBER(AC37),AC37*0.9,"") -> 
B38: =IF(ISNUMBER(AthletInnen!B36),AthletInnen!B36,"") -> 32 | C38: =IF(ISTEXT(AthletInnen!C36),AthletInnen!C36,"") ->  | D38: =IF(ISNUMBER(AthletInnen!D36),AthletInnen!D36,"") ->  | E38: =AthletInnen!E36 ->  | F38: =IF(ISNUMBER(AthletInnen!F36),AthletInnen!F36,"") ->  | G38: =IF(ISNUMBER(AthletInnen!G36),AthletInnen!G36,"") ->  | H38: =IF(ISNUMBER(AthletInnen!H36),AthletInnen!H36,"") ->  | I38: =IF(ISNUMBER('IFT 30-15 Testprotokoll'!L35),'IFT 30-15 Testprotokoll'!L35,"") ->  | J38: =IF(ISNUMBER(AthletInnen!I36),AthletInnen!I36,"") ->  | K38: =IF(ISNUMBER(AthletInnen!J36),AthletInnen!J36,"") ->  | L38: =IF(ISNUMBER(AthletInnen!K36),AthletInnen!K36,"") ->  | M38: =IF(ISNUMBER(AthletInnen!L36),AthletInnen!L36,"") ->  | AB38: =IF(ISNUMBER(AC38),AC38*0.9,"") -> 
B39: =IF(ISNUMBER(AthletInnen!B37),AthletInnen!B37,"") -> 33 | C39: =IF(ISTEXT(AthletInnen!C37),AthletInnen!C37,"") ->  | D39: =IF(ISNUMBER(AthletInnen!D37),AthletInnen!D37,"") ->  | E39: =AthletInnen!E37 ->  | F39: =IF(ISNUMBER(AthletInnen!F37),AthletInnen!F37,"") ->  | G39: =IF(ISNUMBER(AthletInnen!G37),AthletInnen!G37,"") ->  | H39: =IF(ISNUMBER(AthletInnen!H37),AthletInnen!H37,"") ->  | I39: =IF(ISNUMBER('IFT 30-15 Testprotokoll'!L36),'IFT 30-15 Testprotokoll'!L36,"") ->  | J39: =IF(ISNUMBER(AthletInnen!I37),AthletInnen!I37,"") ->  | K39: =IF(ISNUMBER(AthletInnen!J37),AthletInnen!J37,"") ->  | L39: =IF(ISNUMBER(AthletInnen!K37),AthletInnen!K37,"") ->  | M39: =IF(ISNUMBER(AthletInnen!L37),AthletInnen!L37,"") ->  | AB39: =IF(ISNUMBER(AC39),AC39*0.9,"") -> 
B40: =IF(ISNUMBER(AthletInnen!B38),AthletInnen!B38,"") -> 34 | C40: =IF(ISTEXT(AthletInnen!C38),AthletInnen!C38,"") ->  | D40: =IF(ISNUMBER(AthletInnen!D38),AthletInnen!D38,"") ->  | E40: =AthletInnen!E38 ->  | F40: =IF(ISNUMBER(AthletInnen!F38),AthletInnen!F38,"") ->  | G40: =IF(ISNUMBER(AthletInnen!G38),AthletInnen!G38,"") ->  | H40: =IF(ISNUMBER(AthletInnen!H38),AthletInnen!H38,"") ->  | I40: =IF(ISNUMBER('IFT 30-15 Testprotokoll'!L37),'IFT 30-15 Testprotokoll'!L37,"") ->  | J40: =IF(ISNUMBER(AthletInnen!I38),AthletInnen!I38,"") ->  | K40: =IF(ISNUMBER(AthletInnen!J38),AthletInnen!J38,"") ->  | L40: =IF(ISNUMBER(AthletInnen!K38),AthletInnen!K38,"") ->  | M40: =IF(ISNUMBER(AthletInnen!L38),AthletInnen!L38,"") ->  | AB40: =IF(ISNUMBER(AC40),AC40*0.9,"") -> 
B41: =IF(ISNUMBER(AthletInnen!B39),AthletInnen!B39,"") -> 35 | C41: =IF(ISTEXT(AthletInnen!C39),AthletInnen!C39,"") ->  | D41: =IF(ISNUMBER(AthletInnen!D39),AthletInnen!D39,"") ->  | E41: =AthletInnen!E39 ->  | F41: =IF(ISNUMBER(AthletInnen!F39),AthletInnen!F39,"") ->  | G41: =IF(ISNUMBER(AthletInnen!G39),AthletInnen!G39,"") ->  | H41: =IF(ISNUMBER(AthletInnen!H39),AthletInnen!H39,"") ->  | I41: =IF(ISNUMBER('IFT 30-15 Testprotokoll'!L38),'IFT 30-15 Testprotokoll'!L38,"") ->  | J41: =IF(ISNUMBER(AthletInnen!I39),AthletInnen!I39,"") ->  | K41: =IF(ISNUMBER(AthletInnen!J39),AthletInnen!J39,"") ->  | L41: =IF(ISNUMBER(AthletInnen!K39),AthletInnen!K39,"") ->  | M41: =IF(ISNUMBER(AthletInnen!L39),AthletInnen!L39,"") ->  | AB41: =IF(ISNUMBER(AC41),AC41*0.9,"") -> 
B42: =IF(ISNUMBER(AthletInnen!B40),AthletInnen!B40,"") -> 36 | C42: =IF(ISTEXT(AthletInnen!C40),AthletInnen!C40,"") ->  | D42: =IF(ISNUMBER(AthletInnen!D40),AthletInnen!D40,"") ->  | E42: =AthletInnen!E40 ->  | F42: =IF(ISNUMBER(AthletInnen!F40),AthletInnen!F40,"") ->  | G42: =IF(ISNUMBER(AthletInnen!G40),AthletInnen!G40,"") ->  | H42: =IF(ISNUMBER(AthletInnen!H40),AthletInnen!H40,"") ->  | I42: =IF(ISNUMBER('IFT 30-15 Testprotokoll'!L39),'IFT 30-15 Testprotokoll'!L39,"") ->  | J42: =IF(ISNUMBER(AthletInnen!I40),AthletInnen!I40,"") ->  | K42: =IF(ISNUMBER(AthletInnen!J40),AthletInnen!J40,"") ->  | L42: =IF(ISNUMBER(AthletInnen!K40),AthletInnen!K40,"") ->  | M42: =IF(ISNUMBER(AthletInnen!L40),AthletInnen!L40,"") ->  | AB42: =IF(ISNUMBER(AC42),AC42*0.9,"") -> 
B43: =IF(ISNUMBER(AthletInnen!B41),AthletInnen!B41,"") -> 37 | C43: =IF(ISTEXT(AthletInnen!C41),AthletInnen!C41,"") ->  | D43: =IF(ISNUMBER(AthletInnen!D41),AthletInnen!D41,"") ->  | E43: =AthletInnen!E41 ->  | F43: =IF(ISNUMBER(AthletInnen!F41),AthletInnen!F41,"") ->  | G43: =IF(ISNUMBER(AthletInnen!G41),AthletInnen!G41,"") ->  | H43: =IF(ISNUMBER(AthletInnen!H41),AthletInnen!H41,"") ->  | I43: =IF(ISNUMBER('IFT 30-15 Testprotokoll'!L40),'IFT 30-15 Testprotokoll'!L40,"") ->  | J43: =IF(ISNUMBER(AthletInnen!I41),AthletInnen!I41,"") ->  | K43: =IF(ISNUMBER(AthletInnen!J41),AthletInnen!J41,"") ->  | L43: =IF(ISNUMBER(AthletInnen!K41),AthletInnen!K41,"") ->  | M43: =IF(ISNUMBER(AthletInnen!L41),AthletInnen!L41,"") ->  | AB43: =IF(ISNUMBER(AC43),AC43*0.9,"") -> 
B44: =IF(ISNUMBER(AthletInnen!B42),AthletInnen!B42,"") -> 38 | C44: =IF(ISTEXT(AthletInnen!C42),AthletInnen!C42,"") ->  | D44: =IF(ISNUMBER(AthletInnen!D42),AthletInnen!D42,"") ->  | E44: =AthletInnen!E42 ->  | F44: =IF(ISNUMBER(AthletInnen!F42),AthletInnen!F42,"") ->  | G44: =IF(ISNUMBER(AthletInnen!G42),AthletInnen!G42,"") ->  | H44: =IF(ISNUMBER(AthletInnen!H42),AthletInnen!H42,"") ->  | I44: =IF(ISNUMBER('IFT 30-15 Testprotokoll'!L41),'IFT 30-15 Testprotokoll'!L41,"") ->  | J44: =IF(ISNUMBER(AthletInnen!I42),AthletInnen!I42,"") ->  | K44: =IF(ISNUMBER(AthletInnen!J42),AthletInnen!J42,"") ->  | L44: =IF(ISNUMBER(AthletInnen!K42),AthletInnen!K42,"") ->  | M44: =IF(ISNUMBER(AthletInnen!L42),AthletInnen!L42,"") ->  | AB44: =IF(ISNUMBER(AC44),AC44*0.9,"") -> 
B45: =IF(ISNUMBER(AthletInnen!B43),AthletInnen!B43,"") -> 39 | C45: =IF(ISTEXT(AthletInnen!C43),AthletInnen!C43,"") ->  | D45: =IF(ISNUMBER(AthletInnen!D43),AthletInnen!D43,"") ->  | E45: =AthletInnen!E43 ->  | F45: =IF(ISNUMBER(AthletInnen!F43),AthletInnen!F43,"") ->  | G45: =IF(ISNUMBER(AthletInnen!G43),AthletInnen!G43,"") ->  | H45: =IF(ISNUMBER(AthletInnen!H43),AthletInnen!H43,"") ->  | I45: =IF(ISNUMBER('IFT 30-15 Testprotokoll'!L42),'IFT 30-15 Testprotokoll'!L42,"") ->  | J45: =IF(ISNUMBER(AthletInnen!I43),AthletInnen!I43,"") ->  | K45: =IF(ISNUMBER(AthletInnen!J43),AthletInnen!J43,"") ->  | L45: =IF(ISNUMBER(AthletInnen!K43),AthletInnen!K43,"") ->  | M45: =IF(ISNUMBER(AthletInnen!L43),AthletInnen!L43,"") ->  | AB45: =IF(ISNUMBER(AC45),AC45*0.9,"") -> 
B46: =IF(ISNUMBER(AthletInnen!B44),AthletInnen!B44,"") -> 40 | C46: =IF(ISTEXT(AthletInnen!C44),AthletInnen!C44,"") ->  | D46: =IF(ISNUMBER(AthletInnen!D44),AthletInnen!D44,"") ->  | E46: =AthletInnen!E44 ->  | F46: =IF(ISNUMBER(AthletInnen!F44),AthletInnen!F44,"") ->  | G46: =IF(ISNUMBER(AthletInnen!G44),AthletInnen!G44,"") ->  | H46: =IF(ISNUMBER(AthletInnen!H44),AthletInnen!H44,"") ->  | I46: =IF(ISNUMBER('IFT 30-15 Testprotokoll'!L43),'IFT 30-15 Testprotokoll'!L43,"") ->  | J46: =IF(ISNUMBER(AthletInnen!I44),AthletInnen!I44,"") ->  | K46: =IF(ISNUMBER(AthletInnen!J44),AthletInnen!J44,"") ->  | L46: =IF(ISNUMBER(AthletInnen!K44),AthletInnen!K44,"") ->  | M46: =IF(ISNUMBER(AthletInnen!L44),AthletInnen!L44,"") ->  | AB46: =IF(ISNUMBER(AC46),AC46*0.9,"") -> 
B47: Mittelwerte | E47: =AVERAGE(IF(E7:E46<>0,E7:E46)) ->  | F47: =AVERAGE(IF(F7:F46<>0,F7:F46)) ->  | G47: =AVERAGE(IF(G7:G46<>0,G7:G46)) ->  | H47: =AVERAGE(IF(H7:H46<>0,H7:H46)) ->  | I47: =AVERAGE(IF(I7:I46<>0,I7:I46)) ->  | J47: =AVERAGE(IF(J7:J46<>0,J7:J46)) ->  | K47: =AVERAGE(IF(K7:K46<>0,K7:K46)) ->  | L47: =AVERAGE(IF(L7:L46<>0,L7:L46)) ->  | M47: =AVERAGE(IF(M7:M46<>0,M7:M46)) ->  | N47: =AVERAGE(IF(N7:N46<>0,N7:N46)) ->  | P47: =AVERAGE(IF(P7:P46<>0,P7:P46)) ->  | Q47: =AVERAGE(IF(Q7:Q46<>0,Q7:Q46)) ->  | R47: =AVERAGE(IF(R7:R46<>0,R7:R46)) ->  | S47: =AVERAGE(IF(S7:S46<>0,S7:S46)) ->  | T47: =AVERAGE(IF(T7:T46<>0,T7:T46)) ->  | U47: =AVERAGE(IF(U7:U46<>0,U7:U46)) ->  | V47: =AVERAGE(IF(V7:V46<>0,V7:V46)) ->  | W47: =AVERAGE(IF(W7:W46<>0,W7:W46)) ->  | X47: =AVERAGE(IF(X7:X46<>0,X7:X46)) ->  | Y47: =AVERAGE(IF(Y7:Y46<>0,Y7:Y46)) ->  | Z47: =AVERAGE(IF(Z7:Z46<>0,Z7:Z46)) ->  | AA47: =AVERAGE(IF(AA7:AA46<>0,AA7:AA46)) ->  | AB47: =AVERAGE(IF(AB7:AB46<>0,AB7:AB46)) ->  | AC47: =AVERAGE(IF(AC7:AC46<>0,AC7:AC46)) ->  | AD47: =AVERAGE(IF(AD7:AD46<>0,AD7:AD46)) ->  | AE47: =AVERAGE(IF(AE7:AE46<>0,AE7:AE46)) ->  | AF47: =AVERAGE(IF(AF7:AF46<>0,AF7:AF46)) ->  | AG47: =AVERAGE(IF(AG7:AG46<>0,AG7:AG46)) ->  | AH47: =AVERAGE(IF(AH7:AH46<>0,AH7:AH46)) ->  | AI47: =AVERAGE(IF(AI7:AI46<>0,AI7:AI46)) ->  | AJ47: =AVERAGE(IF(AJ7:AJ46<>0,AJ7:AJ46)) ->  | AK47: =AVERAGE(IF(AK7:AK46<>0,AK7:AK46)) -> 
A49: © by Rexhep Kushutani Msc (VfL Bochum) & Florian Maierhofer MSc (MFT) (nach der Idee von Dr. Martin Buchheit)

Sheet HIIT CALCULATOR
A1: HIIT CALCULATOR
A2: © by Rexhep Kushutani M.Sc. of Sports (VfL Bochum) & Florian Maierhofer M.Sc. of Sports (MFT) (nach der Idee von Dr. Martin Buchheit)
B3: mit fixer Geschwindigkeit, wenn keine Ausdauerdiagnostik in Form von einem 30-15 IFT Test absolviert wurde
B4: gewünschte Geschwindigkeit [km/h] | C4: Serien [n] | D4: Serienpause [hh:mm:ss] | E4: Anzahl Intervalle (n) | F4: Intervalldauer [hh:mm:ss] | G4: Intervallpause [hh:mm:ss] | H4: Richtungswechsel [n] | I4: Winkel [45°/90°/180°] | J4: Gesamtdauer [hh:mm:ss]
A5: → | B5: 9.6 | C5: 2 | D5: 00:01:00 | E5: 10 | F5: 00:00:10 | G5: 00:00:10 | H5: 2 | I5: 180 | J5: =(F5+G5)*(E5*C5)+((C5-1)*D5) -> 00:07:40
F6: =HOUR(F5)*3600+MINUTE(F5)*60+SECOND(F5) -> 10 | G6: =HOUR(G5)*3600+MINUTE(G5)*60+SECOND(G5) -> 10
A7: = | B7: Distanz [m] | C7: =IF(ISNUMBER(B5),(B5/3.6)*(F$6-(H$5*(IF(I$5=180,0.7,IF(I$5=90,0.4,IF(I$5=45,0.5)))))),"") -> 23 | D7: Distanz der Teilstrecken [m] | E7: =IF(ISNUMBER(C7),C7/(H$5+1),"") -> 8 | F7: Zeit pro Teilstrecke [sek] | G7: =IF(ISNUMBER(E7),(E7/(B5/3.6)),"") -> 2.9 | H7: min/km | I7: =IF(ISNUMBER(B5),TIME(0,0,1/(B5/3600)),"") -> 00:06:15
B9: mit einer prozentualen Angabe aus dem Ergebnis des 30-15IFT
B10: Geschwindigkeit des VIFT [%] | C10: Serien [n] | D10: Serienpause [hh:mm:ss] | E10: Anzahl Intervalle (n) | F10: Intervalldauer [hh:mm:ss] | G10: Intervallpause [hh:mm:ss] | H10: Richtungswechsel [n] | I10: Winkel [45°/90°/180°] | J10: Gesamtdauer [hh:mm:ss]
A11: → | B11: 80 | C11: 2 | D11: 00:01:00 | E11: 10 | F11: 00:00:10 | G11: 00:00:10 | H11: 2 | I11: 180 | J11: =(F11+G11)*(E11*C11)+((C11-1)*D11) -> 00:07:40
F12: =HOUR(F11)*3600+MINUTE(F11)*60+SECOND(F11) -> 10 | G12: =HOUR(G11)*3600+MINUTE(G11)*60+SECOND(G11) -> 10
A14: Nr | B14: Spieler | C14: V in [km/h] aus IFT | D14: v in [km/h] | E14: v in [m/S] | F14: Distanz HIIT [m] | G14: Distanz Teilstrecken [m] | H14: Zeit pro Teilstrecke [sek] | I14: min/km
A15: =IF(ISNUMBER(AthletInnen!B5),AthletInnen!B5,"") -> 1 | B15: =IF(ISTEXT(AthletInnen!C5),AthletInnen!C5,"") ->  | C15: ='IFT 30-15 Testprotokoll'!L4 ->  | D15: =IF(ISNUMBER(C15),(B$11*C15)/100,"") ->  | E15: =IF(ISNUMBER(D15),(D15/3.6),"") ->  | F15: =IF(ISNUMBER(D15),(D15/3.6)*(F$12-(H$11*(IF(I$11=180,0.7,IF(I$11=90,0.4,IF(I$11=45,0.5)))))),"") ->  | G15: =IF(ISNUMBER(F15),F15/(H$11+1),"") ->  | H15: =IF(ISNUMBER(G15),(G15/(D15/3.6)),"") ->  | I15: =IF(ISNUMBER(D15),TIME(0,0,1/(D15/3600)),"") -> 
A16: =IF(ISNUMBER(AthletInnen!B6),AthletInnen!B6,"") -> 2 | B16: =IF(ISTEXT(AthletInnen!C6),AthletInnen!C6,"") ->  | C16: ='IFT 30-15 Testprotokoll'!L5 ->  | D16: =IF(ISNUMBER(C16),(B$11*C16)/100,"") ->  | E16: =IF(ISNUMBER(D16),(D16/3.6),"") ->  | F16: =IF(ISNUMBER(D16),(D16/3.6)*(F$12-(H$11*(IF(I$11=180,0.7,IF(I$11=90,0.4,IF(I$11=45,0.5)))))),"") ->  | G16: =IF(ISNUMBER(F16),F16/(H$11+1),"") ->  | H16: =IF(ISNUMBER(G16),(G16/(D16/3.6)),"") ->  | I16: =IF(ISNUMBER(D16),TIME(0,0,1/(D16/3600)),"") -> 
A17: =IF(ISNUMBER(AthletInnen!B7),AthletInnen!B7,"") -> 3 | B17: =IF(ISTEXT(AthletInnen!C7),AthletInnen!C7,"") ->  | C17: ='IFT 30-15 Testprotokoll'!L6 -> 
A18: =IF(ISNUMBER(AthletInnen!B8),AthletInnen!B8,"") -> 4 | B18: =IF(ISTEXT(AthletInnen!C8),AthletInnen!C8,"") ->  | C18: ='IFT 30-15 Testprotokoll'!L7 -> 
A19: =IF(ISNUMBER(AthletInnen!B9),AthletInnen!B9,"") -> 5 | B19: =IF(ISTEXT(AthletInnen!C9),AthletInnen!C9,"") ->  | C19: ='IFT 30-15 Testprotokoll'!L8 -> 
A20: =IF(ISNUMBER(AthletInnen!B10),AthletInnen!B10,"") -> 6 | B20: =IF(ISTEXT(AthletInnen!C10),AthletInnen!C10,"") ->  | C20: ='IFT 30-15 Testprotokoll'!L9 -> 
A21: =IF(ISNUMBER(AthletInnen!B11),AthletInnen!B11,"") -> 7 | B21: =IF(ISTEXT(AthletInnen!C11),AthletInnen!C11,"") ->  | C21: ='IFT 30-15 Testprotokoll'!L10 -> 
A22: =IF(ISNUMBER(AthletInnen!B12),AthletInnen!B12,"") -> 8 | B22: =IF(ISTEXT(AthletInnen!C12),AthletInnen!C12,"") ->  | C22: ='IFT 30-15 Testprotokoll'!L11 -> 
A23: =IF(ISNUMBER(AthletInnen!B13),AthletInnen!B13,"") -> 9 | B23: =IF(ISTEXT(AthletInnen!C13),AthletInnen!C13,"") ->  | C23: ='IFT 30-15 Testprotokoll'!L12 -> 
A24: =IF(ISNUMBER(AthletInnen!B14),AthletInnen!B14,"") -> 10 | B24: =IF(ISTEXT(AthletInnen!C14),AthletInnen!C14,"") ->  | C24: ='IFT 30-15 Testprotokoll'!L13 -> 
A25: =IF(ISNUMBER(AthletInnen!B15),AthletInnen!B15,"") -> 11 | B25: =IF(ISTEXT(AthletInnen!C15),AthletInnen!C15,"") ->  | C25: ='IFT 30-15 Testprotokoll'!L14 -> 
A26: =IF(ISNUMBER(AthletInnen!B16),AthletInnen!B16,"") -> 12 | B26: =IF(ISTEXT(AthletInnen!C16),AthletInnen!C16,"") ->  | C26: ='IFT 30-15 Testprotokoll'!L15 -> 
A27: =IF(ISNUMBER(AthletInnen!B17),AthletInnen!B17,"") -> 13 | B27: =IF(ISTEXT(AthletInnen!C17),AthletInnen!C17,"") ->  | C27: ='IFT 30-15 Testprotokoll'!L16 -> 
A28: =IF(ISNUMBER(AthletInnen!B18),AthletInnen!B18,"") -> 14 | B28: =IF(ISTEXT(AthletInnen!C18),AthletInnen!C18,"") ->  | C28: ='IFT 30-15 Testprotokoll'!L17 -> 
A29: =IF(ISNUMBER(AthletInnen!B19),AthletInnen!B19,"") -> 15 | B29: =IF(ISTEXT(AthletInnen!C19),AthletInnen!C19,"") ->  | C29: ='IFT 30-15 Testprotokoll'!L18 -> 
A30: =IF(ISNUMBER(AthletInnen!B20),AthletInnen!B20,"") -> 16 | B30: =IF(ISTEXT(AthletInnen!C20),AthletInnen!C20,"") ->  | C30: ='IFT 30-15 Testprotokoll'!L19 -> 
A31: =IF(ISNUMBER(AthletInnen!B21),AthletInnen!B21,"") -> 17 | B31: =IF(ISTEXT(AthletInnen!C21),AthletInnen!C21,"") ->  | C31: ='IFT 30-15 Testprotokoll'!L20 -> 
A32: =IF(ISNUMBER(AthletInnen!B22),AthletInnen!B22,"") -> 18 | B32: =IF(ISTEXT(AthletInnen!C22),AthletInnen!C22,"") ->  | C32: ='IFT 30-15 Testprotokoll'!L21 -> 
A33: =IF(ISNUMBER(AthletInnen!B23),AthletInnen!B23,"") -> 19 | B33: =IF(ISTEXT(AthletInnen!C23),AthletInnen!C23,"") ->  | C33: ='IFT 30-15 Testprotokoll'!L22 -> 
A34: =IF(ISNUMBER(AthletInnen!B24),AthletInnen!B24,"") -> 20 | B34: =IF(ISTEXT(AthletInnen!C24),AthletInnen!C24,"") ->  | C34: ='IFT 30-15 Testprotokoll'!L23 -> 
A35: =IF(ISNUMBER(AthletInnen!B25),AthletInnen!B25,"") -> 21 | B35: =IF(ISTEXT(AthletInnen!C25),AthletInnen!C25,"") ->  | C35: ='IFT 30-15 Testprotokoll'!L24 -> 
A36: =IF(ISNUMBER(AthletInnen!B26),AthletInnen!B26,"") -> 22 | B36: =IF(ISTEXT(AthletInnen!C26),AthletInnen!C26,"") ->  | C36: ='IFT 30-15 Testprotokoll'!L25 -> 
A37: =IF(ISNUMBER(AthletInnen!B27),AthletInnen!B27,"") -> 23 | B37: =IF(ISTEXT(AthletInnen!C27),AthletInnen!C27,"") ->  | C37: ='IFT 30-15 Testprotokoll'!L26 -> 
A38: =IF(ISNUMBER(AthletInnen!B28),AthletInnen!B28,"") -> 24 | B38: =IF(ISTEXT(AthletInnen!C28),AthletInnen!C28,"") ->  | C38: ='IFT 30-15 Testprotokoll'!L27 -> 
A39: =IF(ISNUMBER(AthletInnen!B29),AthletInnen!B29,"") -> 25 | B39: =IF(ISTEXT(AthletInnen!C29),AthletInnen!C29,"") ->  | C39: ='IFT 30-15 Testprotokoll'!L28 -> 
A40: =IF(ISNUMBER(AthletInnen!B30),AthletInnen!B30,"") -> 26 | B40: =IF(ISTEXT(AthletInnen!C30),AthletInnen!C30,"") ->  | C40: ='IFT 30-15 Testprotokoll'!L29 -> 
A41: =IF(ISNUMBER(AthletInnen!B31),AthletInnen!B31,"") -> 27 | B41: =IF(ISTEXT(AthletInnen!C31),AthletInnen!C31,"") ->  | C41: ='IFT 30-15 Testprotokoll'!L30 -> 
A42: =IF(ISNUMBER(AthletInnen!B32),AthletInnen!B32,"") -> 28 | B42: =IF(ISTEXT(AthletInnen!C32),AthletInnen!C32,"") ->  | C42: ='IFT 30-15 Testprotokoll'!L31 -> 
A43: =IF(ISNUMBER(AthletInnen!B33),AthletInnen!B33,"") -> 29 | B43: =IF(ISTEXT(AthletInnen!C33),AthletInnen!C33,"") ->  | C43: ='IFT 30-15 Testprotokoll'!L32 -> 
A44: =IF(ISNUMBER(AthletInnen!B34),AthletInnen!B34,"") -> 30 | B44: =IF(ISTEXT(AthletInnen!C34),AthletInnen!C34,"") ->  | C44: ='IFT 30-15 Testprotokoll'!L33 -> 
A45: =IF(ISNUMBER(AthletInnen!B35),AthletInnen!B35,"") -> 31 | B45: =IF(ISTEXT(AthletInnen!C35),AthletInnen!C35,"") ->  | C45: ='IFT 30-15 Testprotokoll'!L34 -> 
A46: =IF(ISNUMBER(AthletInnen!B36),AthletInnen!B36,"") -> 32 | B46: =IF(ISTEXT(AthletInnen!C36),AthletInnen!C36,"") ->  | C46: ='IFT 30-15 Testprotokoll'!L35 -> 
A47: =IF(ISNUMBER(AthletInnen!B37),AthletInnen!B37,"") -> 33 | B47: =IF(ISTEXT(AthletInnen!C37),AthletInnen!C37,"") ->  | C47: ='IFT 30-15 Testprotokoll'!L36 -> 
A48: =IF(ISNUMBER(AthletInnen!B38),AthletInnen!B38,"") -> 34 | B48: =IF(ISTEXT(AthletInnen!C38),AthletInnen!C38,"") ->  | C48: ='IFT 30-15 Testprotokoll'!L37 -> 
A49: =IF(ISNUMBER(AthletInnen!B39),AthletInnen!B39,"") -> 35 | B49: =IF(ISTEXT(AthletInnen!C39),AthletInnen!C39,"") ->  | C49: ='IFT 30-15 Testprotokoll'!L38 -> 
A50: =IF(ISNUMBER(AthletInnen!B40),AthletInnen!B40,"") -> 36 | B50: =IF(ISTEXT(AthletInnen!C40),AthletInnen!C40,"") ->  | C50: ='IFT 30-15 Testprotokoll'!L39 -> 
A51: =IF(ISNUMBER(AthletInnen!B41),AthletInnen!B41,"") -> 37 | B51: =IF(ISTEXT(AthletInnen!C41),AthletInnen!C41,"") ->  | C51: ='IFT 30-15 Testprotokoll'!L40 -> 
A52: =IF(ISNUMBER(AthletInnen!B42),AthletInnen!B42,"") -> 38 | B52: =IF(ISTEXT(AthletInnen!C42),AthletInnen!C42,"") ->  | C52: ='IFT 30-15 Testprotokoll'!L41 -> 
A53: =IF(ISNUMBER(AthletInnen!B43),AthletInnen!B43,"") -> 39 | B53: =IF(ISTEXT(AthletInnen!C43),AthletInnen!C43,"") ->  | C53: ='IFT 30-15 Testprotokoll'!L42 -> 
A54: =IF(ISNUMBER(AthletInnen!B44),AthletInnen!B44,"") -> 40 | B54: =IF(ISTEXT(AthletInnen!C44),AthletInnen!C44,"") ->  | C54: ='IFT 30-15 Testprotokoll'!L43 -> 
B56: Mittelwerte | C56: =AVERAGE(IF(C15:C54<>0,C15:C54)) ->  | D56: =AVERAGE(IF(D15:D54<>0,D15:D54)) ->  | E56: =AVERAGE(IF(E15:E54<>0,E15:E54)) ->  | F56: =AVERAGE(IF(F15:F54<>0,F15:F54)) ->  | G56: =AVERAGE(IF(G15:G54<>0,G15:G54)) ->  | H56: =AVERAGE(IF(H15:H54<>0,H15:H54)) ->  | I56: =AVERAGE(IF(I15:I54<>0,I15:I54)) -> 
B58: GRUPPENTRAINING für prozentuelle Geschwindigkeiten
B59: Empfehlung für die gesamte Gruppe, wenn die Möglichkeit nicht besteht mehrere Strecken aufzubauen | D59: km/h | E59: m/s | F59: Distanz gesamt [m] | G59: Distanz der Teilstrecke [m] | H59: Zeit pro Teilstrecke [sek] | I59: min/km
D60: =IF(ISNUMBER(C56),(B11*C56)/100,"") ->  | E60: =IF(ISNUMBER(D60),(D60/3.6),"") ->  | F60: =IF(ISNUMBER(D60),(D$60/3.6)*(F12-(H11*(IF(I11=180,0.7,IF(I11=90,0.4,IF(I11=45,0.5)))))),"") ->  | G60: =IF(ISNUMBER(F60),F60/(H11+1),"") ->  | H60: =IF(ISNUMBER(G60),(G60/(D60/3.6)),"") ->  | I60: =IF(ISNUMBER(I56),(I56),"") -> 
